fUST/lending_fUST_20240502
["ID","MTS","AMOUNT","RATE_DAILY","PERIOD"]
[325244424,1714632364126,1001.2482026,0.00019178,2]
[325244425,1714632364155,1001.2482026,0.00019178,2]
[325244426,1714632364183,1001.2482026,0.00019178,2]
[325244427,1714632364211,1001.2482026,0.00019178,2]
[325244428,1714632364242,1001.2482026,0.00019178,2]
[325244429,1714632364272,1001.2482026,0.00019178,2]
[325244430,1714632364300,1001.2482026,0.00019178,2]
[325244431,1714632364331,1001.2482026,0.00019178,2]
[325244432,1714632364372,1001.2482026,0.00019178,2]
[325244433,1714632364400,1001.2482026,0.00019178,2]
[325244434,1714632364429,1001.2482026,0.00019178,2]
[325244435,1714632364463,1001.2482026,0.00019178,2]
[325244436,1714632364498,1001.2482026,0.00019178,2]
[325244437,1714632364527,1001.2482026,0.00019178,2]
[325244438,1714632364555,1001.2482026,0.00019178,2]
[325244439,1714632364584,1001.2482026,0.00019178,2]
[325244440,1714632364613,1001.2482026,0.00019178,2]
[325244441,1714632364641,1001.2482026,0.00019178,2]
[325244442,1714632364672,1001.2482026,0.00019178,2]
[325244443,1714632364701,1001.2482026,0.00019178,2]
[325244444,1714632364729,1001.2482026,0.00019178,2]
[325244445,1714632364757,1001.2482026,0.00019178,2]
[325244446,1714632364883,1001.2482026,0.00019178,2]
[325244447,1714632364918,1001.2482026,0.00019178,2]
[325244448,1714632364946,1001.2482026,0.00019178,2]
[325244449,1714632364976,1001.2482026,0.00019178,2]
[325244450,1714632365006,1001.2482026,0.00019178,2]
[325244451,1714632365039,1001.2482026,0.00019178,2]
[325244452,1714632365067,1001.2482026,0.00019178,2]
[325244453,1714632365098,1001.2482026,0.00019178,2]
[325244454,1714632365129,1001.2482026,0.00019178,2]
[325244455,1714632365159,1001.2482026,0.00019178,2]
[325244456,1714632365196,1001.2482026,0.00019178,2]
[325244457,1714632365233,1001.2482026,0.00019178,2]
[325244458,1714632365262,1001.2482026,0.00019178,2]
[325244459,1714632365292,1001.2482026,0.00019178,2]
[325244460,1714632365325,1001.2482026,0.00019178,2]
[325244461,1714632365357,1001.2482026,0.00019178,2]
[325244462,1714632365387,1001.2482026,0.00019178,2]
[325244463,1714632365422,1001.2482026,0.00019178,2]
[325244464,1714632365455,1001.2482026,0.00019178,2]
[325244465,1714632365484,1001.2482026,0.00019178,2]
[325244466,1714632365514,1001.2482026,0.00019178,2]
[325244467,1714632365544,1001.2482026,0.00019178,2]
[325244468,1714632365573,1001.2482026,0.00019178,2]
[325244469,1714632365604,1001.2482026,0.00019178,2]
[325244470,1714632365633,1001.2482026,0.00019178,2]
[325244471,1714632365661,1001.2482026,0.00019178,2]
[325244472,1714632365707,1001.2482026,0.00019178,2]
[325244473,1714632381555,500.0,0.00019178,2]
[325244474,1714632381586,500.0,0.00019178,2]
[325244475,1714632381616,500.0,0.00019178,2]
[325244476,1714632381645,500.0,0.00019178,2]
[325244477,1714632381682,500.0,0.00019178,2]
[325244478,1714632381710,500.0,0.00019178,2]
[325244479,1714632381739,500.0,0.00019178,2]
[325244480,1714632381768,500.0,0.00019178,2]
[325244481,1714632381797,500.0,0.00019178,2]
[325244482,1714632381827,500.0,0.00019178,2]
[325244483,1714632381854,500.0,0.00019178,2]
[325244484,1714632381881,500.0,0.00019178,2]
[325244485,1714632381909,500.0,0.00019178,2]
[325244486,1714632381937,500.0,0.00019178,2]
[325244487,1714632382062,500.0,0.00019178,2]
[325244488,1714632382116,500.0,0.00019178,2]
[325244489,1714632382148,500.0,0.00019178,2]
[325244490,1714632382188,500.0,0.00019178,2]
[325244491,1714632382216,500.0,0.00019178,2]
[325244492,1714632382249,500.0,0.00019178,2]
[325244493,1714632382277,500.0,0.00019178,2]
[325244494,1714632382306,500.0,0.00019178,2]
[325244495,1714632382335,500.0,0.00019178,2]
[325244496,1714632382365,500.0,0.00019178,2]
[325244497,1714632382394,500.0,0.00019178,2]
[325244498,1714632382446,500.0,0.00019178,2]
[325244499,1714632382479,500.0,0.00019178,2]
[325244500,1714632382508,500.0,0.00019178,2]
[325244501,1714632382552,500.0,0.00019178,2]
[325244502,1714632382587,500.0,0.00019178,2]
[325244503,1714632382616,500.0,0.00019178,2]
[325244504,1714632382657,500.0,0.00019178,2]
[325244505,1714632382690,434.82485254,0.00019178,2]
[325244506,1714632382722,500.0,0.00019178,2]
[325244507,1714632382755,500.0,0.00019178,2]
[325244508,1714632382784,500.0,0.00019178,2]
[325244509,1714632382836,500.0,0.00019178,2]
[325244510,1714632382924,500.0,0.00019178,2]
[325244511,1714632382965,500.0,0.00019178,2]
[325244512,1714632383036,500.0,0.00019178,2]
[325244513,1714632383067,500.0,0.00019178,2]
[325244514,1714632383144,500.0,0.00019178,2]
[325244515,1714632383190,500.0,0.00019178,2]
[325244516,1714632512054,500.0,0.00019451,2]
[325244517,1714632512092,500.0,0.00019451,2]
[325244518,1714632512123,500.0,0.00019451,2]
[325244519,1714632512154,500.0,0.00019451,2]
[325244520,1714632512182,500.0,0.00019451,2]
[325244521,1714632512209,500.0,0.00019451,2]
[325244522,1714632512238,500.0,0.00019451,2]
[325244523,1714632512268,500.0,0.00019451,2]
[325244524,1714632512329,500.0,0.00019451,2]
[325244525,1714632512356,500.0,0.00019451,2]
[325244526,1714632512384,500.0,0.00019451,2]
[325244527,1714632512441,500.0,0.00019451,2]
[325244528,1714632512498,500.0,0.00019451,2]
[325244529,1714632512632,500.0,0.00019451,2]
[325244530,1714632512779,500.0,0.00019451,2]
[325244531,1714632512818,500.0,0.00019451,2]
[325244532,1714632512850,500.0,0.00019451,2]
[325244533,1714632512878,500.0,0.00019451,2]
[325244534,1714632512907,500.0,0.00019451,2]
[325244535,1714632512975,500.0,0.00019451,2]
[325244536,1714632513006,500.0,0.00019451,2]
[325244537,1714632513084,628.82479238,0.00019451,2]
[325244538,1714632513149,500.0,0.00019451,2]
[325244559,1714632631925,-209.902795,0.00028493,2]
[325244561,1714632631935,-164.66079013,0.000299,15]
[325244563,1714632631944,-209.902795,0.00034203,2]
[325244565,1714632631953,-164.3,0.00036597,3]
[325244567,1714632631962,-166.48960871,0.00039559,2]
[325244569,1714632631971,-529.97295891,0.00039659,2]
[325244577,1714632632038,-24370.02704109,0.00039659,2]
[325244579,1714632632047,-209.902795,0.00039913,2]
[325244581,1714632632057,-209.902795,0.00045624,2]
[325244583,1714632632067,-2000.0,0.00048,30]
[325244584,1714632632076,-10000.0,0.000499,120]
[325244585,1714632632086,-692.04578439,0.000499,120]
[325244598,1714632639584,-954.3652342,0.000499,120]
[325244599,1714632639596,-353.58898141,0.000499,120]
[325244600,1714632639606,-403.55519046,0.000499,83]
[325244601,1714632639615,-2078.0,0.0005,30]
[325244602,1714632639625,-292.79475266,0.0005,120]
[325244603,1714632639634,-176.86113073,0.00051111,2]
[325244604,1714632639643,-209.902795,0.00051334,2]
[325244605,1714632639653,-590.0,0.000517,30]
[325244606,1714632639663,-473.20363784,0.00052776,2]
[325244607,1714632639672,-331.5649609,0.00052776,2]
[325244608,1714632639681,-874.0,0.000528,120]
[325244609,1714632639785,-239.06,0.00052866,30]
[325244610,1714632639800,-500.0,0.00052875,120]
[325244611,1714632639809,-488.64743772,0.00052875,120]
[325244612,1714632639818,-500.0,0.00052875,120]
[325244613,1714632639827,-500.0,0.00052875,120]
[325244614,1714632639836,-500.0,0.00052875,120]
[325244615,1714632639845,-500.0,0.00052875,120]
[325244616,1714632639854,-500.0,0.00052875,120]
[325244617,1714632639864,-501.99288692,0.00052876,120]
[325244618,1714632639873,-514.9016814,0.00052876,120]
[325244619,1714632639882,-501.65602816,0.00052876,120]
[325244620,1714632639891,-1017.12,0.00052876,120]
[325244621,1714632639900,-151.0,0.00052876,7]
[325244622,1714632639910,-151.0,0.00052876,7]
[325244623,1714632639919,-212.9390384,0.00052876,120]
[325244624,1714632639928,-503.10879227,0.00052876,120]
[325244625,1714632639937,-151.0,0.00052876,7]
[325244626,1714632639946,-151.0,0.00052876,7]
[325244627,1714632639956,-500.0,0.00052876,120]
[325244628,1714632639965,-506.21421155,0.00052876,120]
[325244629,1714632639974,-500.0,0.00052876,120]
[325244630,1714632639983,-500.0,0.00052876,120]
[325244631,1714632639992,-500.0,0.00052876,120]
[325244632,1714632640001,-500.0,0.00052876,120]
[325244633,1714632640010,-500.0,0.00052876,2]
[325244634,1714632640021,-151.0,0.00052876,7]
[325244635,1714632640031,-151.0,0.00052876,7]
[325244636,1714632640040,-300.615387,0.00052876,7]
[325244637,1714632640049,-500.0,0.00052876,120]
[325244638,1714632640059,-255.388106,0.00052876,7]
[325244639,1714632640068,-500.0,0.00052876,120]
[325244640,1714632640078,-500.0,0.00052876,120]
[325244641,1714632640088,-500.0,0.00052876,120]
[325244642,1714632640099,-500.0,0.00052876,120]
[325244643,1714632640111,-151.0,0.00052876,7]
[325244645,1714632640120,-151.0,0.00052876,7]
[325244646,1714632640129,-203.11739981,0.00052876,120]
[325244673,1714632646062,-296.88260019,0.00052876,120]
[325244674,1714632646072,-4.35951655,0.00052876,120]
[325244679,1714632659872,1460.54516388,0.00020913,2]
[325244680,1714632670894,154.95649485,0.00020913,2]
[325244681,1714632691159,1381.82161256,0.00020913,2]
[325244682,1714632707099,709.24712561,0.00020913,2]
[325244683,1714632829455,900.0,0.00020913,2]
[325244684,1714632847994,600.0,0.00020913,2]
[325244685,1714632865950,500.0,0.00020913,2]
[325244686,1714632881102,493.25923209,0.000205,5]
[325244687,1714632881128,1000.0,0.000205,5]
[325244688,1714632881151,810.07327529,0.000205,5]
[325244689,1714632881964,260.5,0.00020913,2]
[325244690,1714632902473,260.5,0.00020913,2]
[325244691,1714632922466,260.5,0.00020913,2]
[325244692,1714632936479,260.5,0.00020913,2]
[325244694,1714632956487,260.5,0.00020913,2]
[325244695,1714632976994,260.5,0.00020913,2]
[325244696,1714632997003,260.5,0.00020913,2]
[325244697,1714633014995,260.5,0.00020913,2]
[325244698,1714633039486,260.5,0.00020913,2]
[325244699,1714633055509,260.5,0.00020913,2]
[325244700,1714633073500,395.0,0.00020913,2]
[325244701,1714633316821,653.1987203,0.00020913,2]
[325244741,1714633832279,-1084.67827212,0.00028381,2]
[325244751,1714633832388,-530.68111469,0.00028381,2]
[325244837,1714633838701,-2914.70000004,0.00028381,2]
[325244850,1714633840652,-1877.08072345,0.00028381,2]
[325244899,1714633846343,-1360.04597239,0.00028381,2]
[325245003,1714633905299,1089.17436889,0.00020913,2]
[325245004,1714634126772,200.71110077,0.00020913,2]
[325245005,1714634132620,2151.16096719,0.00020913,2]
[325245006,1714634152949,656.39263271,0.00020913,2]
[325245007,1714634321847,179.40062665,0.00022,11]
[325245008,1714634334788,155.03043073,0.00020913,2]
[325245009,1714634335496,154.92332856,0.00020913,2]
[325245010,1714634340910,154.95027003,0.00019,2]
[325245011,1714634346446,154.99572074,0.00020913,2]
[325245012,1714634374354,288.43045875,0.00020913,2]
[325245013,1714634383475,156.8587421,0.00020913,2]
[325245014,1714634392847,240.35871563,0.00020913,2]
[325245015,1714634414288,240.35871563,0.00020913,2]
[325245016,1714634431843,500.0,0.00019451,2]
[325245017,1714634431900,546.59423131,0.00019451,2]
[325245018,1714634434308,154.73694719,0.00020913,2]
[325245019,1714634452788,154.73694719,0.00020913,2]
[325245020,1714634472290,154.73694719,0.00020913,2]
[325245021,1714634494294,154.73694719,0.00020913,2]
[325245022,1714634512849,154.73694719,0.00020913,2]
[325245023,1714634536295,154.73694719,0.00020913,2]
[325245026,1714634552295,303.36178569,0.00020913,2]
[325245028,1714634807386,-166.666666,0.00025105,2]
[325245029,1714634807408,-166.666666,0.00025789,2]
[325245030,1714634807427,-166.666666,0.00026474,2]
[325245031,1714634807566,-7780.94031971,0.00026663,2]
[325245072,1714635032523,-17119.05968029,0.00026663,2]
[325245074,1714635032533,-217.50164191,0.00026674,2]
[325245076,1714635032542,-199.535515,0.00026774,2]
[325245078,1714635032551,-166.666666,0.00027158,2]
[325245080,1714635032562,-1000.0,0.00027369,2]
[325245082,1714635032572,-166.666666,0.00027843,2]
[325245084,1714635032581,-179.404099,0.00028493,2]
[325245086,1714635032590,-162.115184,0.00028493,2]
[325245088,1714635032600,-163.363263,0.00028493,2]
[325245090,1714635032611,-166.666666,0.00028527,2]
[325245092,1714635032619,-261.7,0.00034628,3]
[325245094,1714635032629,-163.363263,0.00037534,2]
[325245096,1714635032638,-199.535515,0.00040161,2]
[325245098,1714635032647,-163.363263,0.00046575,2]
[325245100,1714635032656,-800.0,0.00048,120]
[325245102,1714635032666,-49764.75089824,0.0005,15]
[325245104,1714635032675,-600.0,0.0005,120]
[325245107,1714635032685,-5384.06199791,0.000525,120]
[325245110,1714635032694,-2194.64597891,0.000525,120]
[325245115,1714635032714,-3195.75169156,0.000525,120]
[325245117,1714635032723,-416.85250148,0.00052775,2]
[325245119,1714635032732,-8537.51365478,0.00052776,61]
[325245182,1714635038663,-1089.17436889,0.00052776,61]
[325245197,1714635040858,-1156.18,0.00052776,61]
[325245231,1714635043851,-7372.7725194,0.00052776,61]
[325245232,1714635043862,-908.16779831,0.00052776,120]
[325245248,1714635075120,364.785499,0.00020913,2]
[325245249,1714635194410,348.37825533,0.00020913,2]
[325245250,1714635195356,289.4128937,0.00020913,2]
[325245251,1714635198472,639.42593746,0.00020913,2]
[325245252,1714635199431,842.56446627,0.00020913,2]
[325245253,1714635199848,603.84859883,0.00020913,2]
[325245254,1714635202967,437.78861634,0.00020913,2]
[325245255,1714635204230,23741.53836249,0.00020913,2]
[325245256,1714635205330,155.71926801,0.00020913,2]
[325245257,1714635265818,836.70058471,0.00020913,2]
[325245263,1714635957834,398.71731426,0.000189,2]
[325245395,1714636238651,-398.71731426,0.000239,2]
[325245396,1714636238661,-168.608198,0.00027154,2]
[325245397,1714636238671,-373.161111,0.00027256,2]
[325245398,1714636238680,-157.427096,0.00028493,2]
[325245399,1714636238690,-181.796154,0.00028493,2]
[325245400,1714636238700,-160.386526,0.00028932,2]
[325245401,1714636238709,-168.608198,0.00029004,2]
[325245402,1714636238719,-177.95836334,0.00030042,2]
[325245403,1714636238729,-168.608198,0.00030855,2]
[325245404,1714636238739,-4233.770377,0.0003376,2]
[325245405,1714636238762,-20666.229623,0.0003376,2]
[325245406,1714636238771,-157.427096,0.00034203,2]
[325245407,1714636238780,-239.9,0.00034636,3]
[325245408,1714636238790,-157.427096,0.00039913,2]
[325245409,1714636238799,-373.161111,0.00040884,2]
[325245410,1714636238811,-1500.70004258,0.000425,30]
[325245411,1714636238820,-157.427096,0.00045624,2]
[325245412,1714636238830,-863.81,0.0004697,3]
[325245413,1714636238839,-500.0,0.00046979,120]
[325245414,1714636238848,-500.0,0.00046979,120]
[325245415,1714636238858,-500.0,0.00046979,120]
[325245416,1714636238867,-621.28683461,0.00046979,120]
[325245417,1714636238877,-500.0,0.00046979,120]
[325245418,1714636238886,-500.0,0.00046979,120]
[325245419,1714636238895,-499.99999999,0.00046979,120]
[325245420,1714636238905,-9077.82027153,0.0004698,61]
[325245421,1714636238914,-37434.12826032,0.0004698,120]
[325245434,1714636240751,-689.04997746,0.0004698,120]
[325245498,1714636246729,-48471.16869274,0.0004698,120]
[325245499,1714636246739,-364.69068957,0.000499,2]
[325245500,1714636246747,-27647.08409635,0.0005,15]
[325245501,1714636246757,-2000.0,0.0005,30]
[325245502,1714636246766,-2000.0,0.0005,35]
[325245503,1714636246775,-1000.0,0.0005,30]
[325245504,1714636246785,-151.0,0.0005,120]
[325245505,1714636246794,-181.796154,0.00050192,2]
[325245506,1714636246803,-364.69068953,0.00050756,2]
[325245507,1714636246812,-1000.0,0.00051,51]
[325245508,1714636246821,-157.427096,0.00051334,2]
[325245509,1714636246832,-364.69068953,0.00051612,2]
[325245510,1714636246841,-500.0,0.00052054,120]
[325245511,1714636246850,-364.69068953,0.00052468,2]
[325245512,1714636246859,-448.54038485,0.00052499,120]
[325245513,1714636246869,-1858.36,0.000525,120]
[325245514,1714636246879,-2000.0,0.000525,120]
[325245515,1714636246888,-151.0,0.000525,7]
[325245516,1714636246897,-151.0,0.000525,7]
[325245517,1714636246906,-151.0,0.000525,7]
[325245518,1714636246915,-151.0,0.000525,7]
[325245519,1714636246924,-151.0,0.000525,7]
[325245520,1714636246933,-151.0,0.000525,7]
[325245521,1714636246943,-151.0,0.000525,7]
[325245522,1714636246952,-223.411047,0.000525,7]
[325245523,1714636246961,-151.0,0.000525,7]
[325245524,1714636246970,-151.0,0.000525,7]
[325245525,1714636246980,-299.49346,0.000525,7]
[325245526,1714636246989,-151.0,0.000525,7]
[325245527,1714636246998,-265.3724,0.000525,7]
[325245528,1714636247008,-265.3724,0.000525,7]
[325245529,1714636247018,-151.0,0.000525,7]
[325245530,1714636247029,-151.0,0.000525,7]
[325245531,1714636247039,-151.0,0.000525,7]
[325245532,1714636247048,-151.0,0.000525,7]
[325245533,1714636247058,-194.143809,0.000525,7]
[325245534,1714636247068,-151.0,0.000525,7]
[325245535,1714636247077,-151.0,0.000525,7]
[325245536,1714636247087,-194.143809,0.000525,7]
[325245537,1714636247096,-151.0,0.000525,7]
[325245538,1714636247106,-151.0,0.000525,7]
[325245539,1714636247118,-151.0,0.000525,7]
[325245540,1714636247127,-151.0,0.000525,7]
[325245541,1714636247236,-6973.59866981,0.00052776,2]
[325245542,1714636247246,-20882.67662311,0.00052776,120]
[325245545,1714636472087,402.36520385,0.00019178,2]
[325245546,1714636603427,892.05285723,0.00020913,2]
[325245547,1714636621302,464.75953862,0.00020913,2]
[325245548,1714636639305,464.75953862,0.00020913,2]
[325245549,1714636657332,464.75953862,0.00020913,2]
[325245550,1714636679310,464.75953862,0.00020913,2]
[325245551,1714636703306,464.75953862,0.00020913,2]
[325245553,1714636725329,464.75953862,0.00020913,2]
[325245554,1714636745324,464.75953862,0.00020913,2]
[325245555,1714636763350,464.75953862,0.00020913,2]
[325245556,1714636779326,464.75953862,0.00020913,2]
[325245557,1714636801343,464.75953862,0.00020913,2]
[325245558,1714636821347,565.7682138,0.00020913,2]
[325245559,1714637164002,150.0,0.000189,2]
[325245571,1714637431833,-150.0,0.000239,2]
[325245572,1714637431846,-162.115184,0.00028493,2]
[325245573,1714637431855,-163.363263,0.00028493,2]
[325245574,1714637431864,-2675.57684805,0.00028937,2]
[325245612,1714637440009,-369.98977836,0.00028937,2]
[325245654,1714637956281,3000.0,0.0002665,120]
[325245659,1714638572109,-157.427096,0.00028493,2]
[325245660,1714638572129,-8123.51322171,0.0002928,2]
[325245752,1714638640261,-256.99799994,0.0002928,2]
[325245758,1714638643220,-425.0,0.0002928,2]
[325245773,1714639590363,10000.0,0.00025,90]
[325245774,1714639593159,-181.796154,0.00028493,2]
[325245775,1714639593181,-157.427101,0.00028493,2]
[325245776,1714639593203,-7941.7428245,0.00033299,2]
[325245810,1714639832454,-3118.53897687,0.00034095,4]
[325245811,1714639832463,-232.4,0.00034126,3]
[325245813,1714639832473,-24900.0,0.00034953,2]
[325245814,1714639832482,-157.427096,0.00036243,2]
[325245815,1714639832491,-163.363263,0.00040548,2]
[325245816,1714639832500,-150.0,0.0004099,2]
[325245817,1714639832509,-150.0,0.0004399,2]
[325245818,1714639832519,-157.427096,0.00043992,2]
[325245819,1714639832528,-182.34534477,0.00046879,2]
[325245820,1714639832537,-7966.96946997,0.0004688,5]
[325245838,1714639840615,-510.77653203,0.0004688,5]
[325245845,1714639842796,-47077.253998,0.0004688,5]
[325245847,1714639842805,-161.17652071,0.00046979,30]
[325245848,1714639842814,-160.0,0.00046979,30]
[325245849,1714639842823,-1000.0,0.00046979,5]
[325245850,1714639842832,-1000.0,0.00046979,5]
[325245851,1714639842841,-1006.74862597,0.00046979,5]
[325245852,1714639842851,-999.0,0.00046979,7]
[325245853,1714639842860,-999.0,0.00046979,10]
[325245854,1714639842869,-999.0,0.00046979,13]
[325245856,1714639842878,-999.0,0.00046979,16]
[325245857,1714639842887,-999.0,0.00046979,19]
[325245859,1714639842895,-999.0,0.00046979,22]
[325245861,1714639842904,-999.0,0.00046979,25]
[325245863,1714639842915,-214.75721568,0.00046979,28]
[325245865,1714639842924,-8225.29639547,0.0004698,61]
[325245867,1714639842934,-52907.81225631,0.0004698,120]
[325245938,1714639862136,272.74470342,0.00020913,2]
[325245939,1714639863080,165.9141139,0.00020913,2]
[325245941,1714639881814,3061.66999904,0.00020913,2]
[325245942,1714640040055,266.17487963,0.0002,2]
[325245945,1714640088327,428.34109669,0.0002,2]
[325245948,1714640214109,7237.43807302,0.0002,2]
[325245949,1714640232084,4680.42042368,0.0002,2]
[325246004,1714641040870,-0.30390504,0.0002632,2]
[325246055,1714641044021,-166.36276286,0.0002632,2]
[325246057,1714641044031,-7689.09358482,0.00028037,2]
[325246104,1714641048067,-3127.68279511,0.00028037,2]
[325246105,1714641062420,281.15904372,0.0002,2]
[325246142,1714642232498,-5236.02251764,0.00027912,2]
[325246147,1714642232538,-19663.97748236,0.00027912,2]
[325246149,1714642232547,-177.95836334,0.00028315,2]
[325246151,1714642232556,-625.11361887,0.00028415,2]
[325246153,1714642232566,-163.363263,0.00028493,2]
[325246155,1714642232576,-157.427096,0.00028493,2]
[325246157,1714642232590,-181.796154,0.00028493,2]
[325246160,1714642232599,-168.0,0.0003,2]
[325246161,1714642232608,-213.0,0.00031163,3]
[325246163,1714642232617,-158.508221,0.00035616,120]
[325246165,1714642232628,-157.427096,0.00038356,2]
[325246167,1714642232637,-47696.59379829,0.0003965,20]
[325246169,1714642232647,-383.08684158,0.0003965,20]
[325246172,1714642232658,-711.63132921,0.0003965,20]
[325246307,1714642243276,-4949.52000001,0.0003965,20]
[325246347,1714643374168,-8280.9660795,0.00027916,2]
[325246370,1714643432986,-3495.04332262,0.00027916,2]
[325246477,1714643443290,-13123.99059788,0.00027916,2]
[325246478,1714643443302,-181.985955,0.00028493,2]
[325246479,1714643443314,-169.495908,0.00028493,2]
[325246480,1714643443326,-162.94817,0.00028493,2]
[325246481,1714643443337,-195.3,0.00031165,3]
[325246482,1714643443348,-162.94817,0.00036243,2]
[325246483,1714643443359,-493.0,0.00040266,2]
[325246484,1714643443370,-150.763,0.00040266,2]
[325246485,1714643443381,-150.151,0.00040266,2]
[325246486,1714643443392,-18752.63906828,0.0004265,20]
[325246503,1714643554804,3052.13238877,0.00020913,2]
[325246504,1714643585966,2714.60784212,0.00020913,2]
[325246509,1714644401111,-169.611633,0.00028493,2]
[325246510,1714644401132,-166.034147,0.00028493,2]
[325246511,1714644401153,-179.0,0.00030815,3]
[325246512,1714644401173,-7766.32822607,0.0003216,2]
[325246560,1714644632610,-228.2,0.00030815,3]
[325246562,1714644632619,-24900.0,0.00033487,2]
[325246564,1714644632628,-199.535516,0.00033537,2]
[325246566,1714644632637,-303.95420544,0.00035174,2]
[325246568,1714644632648,-166.034147,0.00035274,2]
[325246570,1714644632658,-304.65020211,0.0004,15]
[325246572,1714644632667,-417.0,0.00040457,2]
[325246574,1714644632677,-150.0,0.00040457,2]
[325246576,1714644632686,-166.034147,0.00042055,2]
[325246578,1714644632695,-45685.49237565,0.0004265,20]
[325246627,1714644638664,-20483.25538602,0.0004265,20]
[325246648,1714644643615,-697.36284444,0.0004265,20]
[325246674,1714645305046,154.73694719,9.999e-05,2]
[325246675,1714645369280,364.07310375,9.999e-05,2]
[325246676,1714645389280,168.1833532,9.999e-05,2]
[325246677,1714645411755,1115.99167851,0.00025,60]
[325246729,1714645832943,-171.095669,0.00028493,2]
[325246731,1714645832954,-157.946783,0.00028493,2]
[325246733,1714645832968,-169.495908,0.00028493,2]
[325246735,1714645832977,-3387.06118485,0.00030875,2]
[325246737,1714645832986,-198.8,0.00030928,3]
[325246739,1714645832995,-5000.0,0.00033,4]
[325246741,1714645833004,-24900.0,0.00033416,2]
[325246743,1714645833013,-265.95992976,0.000349,2]
[325246744,1714645833024,-722.45030278,0.00035,4]
[325246745,1714645833033,-10152.0,0.00035,30]
[325246746,1714645833043,-268.2751311,0.00035616,120]
[325246747,1714645833052,-1000.0,0.0004,120]
[325246748,1714645833061,-150.0,0.00041905,2]
[325246749,1714645833071,-60203.71896786,0.0004265,20]
[325246760,1714645838966,-1577.26818415,0.0004265,20]
[325246761,1714645838975,-201.07,0.0004298,30]
[325246762,1714645838985,-167.56,0.0004298,30]
[325246763,1714645838994,-837.8,0.0004298,30]
[325246764,1714645839004,-285.0,0.0004298,3]
[325246765,1714645839013,-21947.85158898,0.0004299,7]
[325246772,1714645841130,-11824.52613299,0.0004299,7]
[325246773,1714645841140,-4947.08480159,0.0004299,120]
[325246774,1714645841152,-44238.59385045,0.0004299,120]
[325246805,1714645843513,-877.25667515,0.0004299,120]
[325246806,1714645843525,-322.32979238,0.0004299,120]
[325246839,1714645919382,48013.05811937,0.00020913,2]
[325246840,1714645940932,815.53341736,9.999e-05,2]
[325246841,1714646026551,154.7215013,0.00020913,2]
[325246843,1714646614959,150.0,0.0002,2]
[325246844,1714646692937,815.53341736,0.00020913,2]
[325246845,1714646826196,154.73694719,0.00020913,2]
[325246888,1714647032179,-254.72847435,0.00024658,10]
[325246890,1714647032190,-195.27152565,0.00024658,10]
[325246892,1714647032199,-24900.0,0.00027577,2]
[325246894,1714647032209,-325.50505043,0.00028393,2]
[325246896,1714647032220,-162.553807,0.00028493,2]
[325246898,1714647032230,-169.611633,0.00028493,2]
[325246900,1714647032239,-1966.77017511,0.0003,7]
[325246902,1714647032248,-323.0,0.0003,2]
[325246904,1714647032258,-259.9,0.00030969,3]
[325246906,1714647032267,-167.9644499,0.00033729,2]
[325246908,1714647032280,-158.508221,0.00035616,120]
[325246910,1714647032289,-325.5050504,0.00036823,2]
[325246912,1714647032298,-162.553807,0.00036839,2]